[Event "Titled Tuesday Blitz August 08 Late 2023"]
[White "Begmuratov, Alisher"]
[Black "Isanzhulov, Arystan"]
[WhiteFideId "14203367"]
[BlackFideId "13711644"]
[WhiteElo "2654"]
[BlackElo "2876"]
[Result "1-0"]
[Round "3"]
[TimeControl "180+1"]
[Date "2023.08.08"]
[WhiteClock "0:00:11"]
[BlackClock "0:00:07"]
[Board "23"]

1. e4 {[%clk 0:03:00]}  a6 {[%clk 0:02:59]} 2. Bc4 {[%clk 0:02:58]}  c6 {[%clk 0:02:59]} 3. d4 {[%clk 0:02:57]}  d5 {[%clk 0:02:59]} 4. Bd3 {[%clk 0:02:56]}  dxe4 {[%clk 0:02:57]} 5. Bxe4 {[%clk 0:02:56]}  Nf6 {[%clk 0:02:57]} 6. Bf3 {[%clk 0:02:57]}  Bf5 {[%clk 0:02:55]} 7. Nc3 {[%clk 0:02:55]}  e6 {[%clk 0:02:55]} 8. Nge2 {[%clk 0:02:55]}  Bd6 {[%clk 0:02:55]} 9. Bf4 {[%clk 0:02:53]}  O-O {[%clk 0:02:54]} 10. Qd2 {[%clk 0:02:52]}  b5 {[%clk 0:02:47]} 11. O-O {[%clk 0:02:40]}  Ra7 {[%clk 0:02:46]} 12. Bxd6 {[%clk 0:02:35]}  Qxd6 {[%clk 0:02:46]} 13. Nd1 {[%clk 0:02:33]}  c5 {[%clk 0:02:44]} 14. Ne3 {[%clk 0:02:31]}  Rd8 {[%clk 0:02:34]} 15. Nxf5 {[%clk 0:02:28]}  exf5 {[%clk 0:02:35]} 16. Rfd1 {[%clk 0:02:25]}  Rad7 {[%clk 0:02:35]} 17. c3 {[%clk 0:02:23]}  Nc6 {[%clk 0:02:33]} 18. Bxc6 {[%clk 0:02:21]}  Qxc6 {[%clk 0:02:34]} 19. Qc2 {[%clk 0:02:19]}  g6 {[%clk 0:02:15]} 20. dxc5 {[%clk 0:02:17]}  Qe4 {[%clk 0:02:10]} 21. Rxd7 {[%clk 0:02:12]}  Qxc2 {[%clk 0:02:10]} 22. Rxd8+ {[%clk 0:02:11]}  Kg7 {[%clk 0:02:10]} 23. Kf1 {[%clk 0:02:07]}  Qxb2 {[%clk 0:01:59]} 24. Rad1 {[%clk 0:02:04]}  Qxa2 {[%clk 0:01:58]} 25. f3 {[%clk 0:02:02]}  Qc4 {[%clk 0:01:57]} 26. Rc8 {[%clk 0:02:00]}  a5 {[%clk 0:01:48]} 27. Rd4 {[%clk 0:01:56]}  Qe6 {[%clk 0:01:48]} 28. Rb8 {[%clk 0:01:57]}  Qc6 {[%clk 0:01:45]} 29. c4 {[%clk 0:01:55]}  b4 {[%clk 0:01:43]} 30. Rb5 {[%clk 0:01:55]}  a4 {[%clk 0:01:25]} 31. Rxb4 {[%clk 0:01:50]}  a3 {[%clk 0:01:25]} 32. Rb1 {[%clk 0:01:49]}  Qxc5 {[%clk 0:01:24]} 33. Ra1 {[%clk 0:01:47]}  h5 {[%clk 0:01:21]} 34. Rd3 {[%clk 0:01:44]}  Qxc4 {[%clk 0:01:20]} 35. Raxa3 {[%clk 0:01:43]}  h4 {[%clk 0:01:18]} 36. Rd4 {[%clk 0:01:41]}  Qc5 {[%clk 0:01:11]} 37. Rc3 {[%clk 0:01:39]}  Qe7 {[%clk 0:01:02]} 38. Rcd3 {[%clk 0:01:37]}  g5 {[%clk 0:00:59]} 39. Kf2 {[%clk 0:01:35]}  Qa7 {[%clk 0:00:58]} 40. h3 {[%clk 0:01:34]}  Nd7 {[%clk 0:00:52]} 41. Kf1 {[%clk 0:01:31]}  Ne5 {[%clk 0:00:47]} 42. Rd1 {[%clk 0:01:29]}  Qa6 {[%clk 0:00:45]} 43. f4 {[%clk 0:01:27]}  Nc4 {[%clk 0:00:43]} 44. Rc1 {[%clk 0:01:18]}  Na5 {[%clk 0:00:14]} 45. Ra1 {[%clk 0:01:14]}  Qb5 {[%clk 0:00:13]} 46. Rad1 {[%clk 0:01:09]}  g4 {[%clk 0:00:11]} 47. hxg4 {[%clk 0:01:06]}  fxg4 {[%clk 0:00:11]} 48. Rd5 {[%clk 0:01:04]}  Qa4 {[%clk 0:00:12]} 49. R1d4 {[%clk 0:01:02]}  Qa1+ {[%clk 0:00:12]} 50. Rd1 {[%clk 0:01:02]}  Qa4 {[%clk 0:00:12]} 51. R1d4 {[%clk 0:00:58]}  Nc4 {[%clk 0:00:13]} 52. Rg5+ {[%clk 0:00:56]}  Kf6 {[%clk 0:00:12]} 53. Rxc4 {[%clk 0:00:35]}  Qxc4 {[%clk 0:00:12]} 54. Rxg4 {[%clk 0:00:36]}  Kf5 {[%clk 0:00:13]} 55. Rxh4 {[%clk 0:00:34]}  Qa6 {[%clk 0:00:13]} 56. Rh5+ {[%clk 0:00:32]}  Ke4 {[%clk 0:00:10]} 57. Re5+ {[%clk 0:00:31]}  Kd3 {[%clk 0:00:11]} 58. Kf2 {[%clk 0:00:29]}  Qa7+ {[%clk 0:00:11]} 59. Kf3 {[%clk 0:00:29]}  Qb7+ {[%clk 0:00:11]} 60. Kf2 {[%clk 0:00:28]}  Kd2 {[%clk 0:00:09]} 61. g4 {[%clk 0:00:25]}  Qh1 {[%clk 0:00:09]} 62. Ng3 {[%clk 0:00:23]}  Qh4 {[%clk 0:00:09]} 63. Kf3 {[%clk 0:00:22]}  Kd3 {[%clk 0:00:09]} 64. g5 {[%clk 0:00:21]}  Qh8 {[%clk 0:00:08]} 65. Rd5+ {[%clk 0:00:22]}  Kc4 {[%clk 0:00:08]} 66. Re5 {[%clk 0:00:21]}  Kd4 {[%clk 0:00:07]} 67. Kg4 {[%clk 0:00:20]}  Qc8+ {[%clk 0:00:07]} 68. Nf5+ {[%clk 0:00:16]}  Kd3 {[%clk 0:00:07]} 69. Re7 {[%clk 0:00:15]}  Qf8 {[%clk 0:00:08]} 70. Rd7+ {[%clk 0:00:14]}  Ke2 {[%clk 0:00:06]} 71. Nd6 {[%clk 0:00:13]}  f6 {[%clk 0:00:03]} 72. g6 {[%clk 0:00:11]}  Qh6 {[%clk 0:00:03]} 73. Re7+ {[%clk 0:00:10]}  Kf2 {[%clk 0:00:03]} 74. Kf5 {[%clk 0:00:11]}  Kf3 {[%clk 0:00:01]} 75. g7 {[%clk 0:00:10]}  Qxf4+ {[%clk 0:00:01]} 76. Kg6 {[%clk 0:00:10]}  Qg5+ {[%clk 0:00:02]} 77. Kf7 {[%clk 0:00:09]}  Qh5+ {[%clk 0:00:02]} 78. Kf8 {[%clk 0:00:08]}  Qh6 {[%clk 0:00:03]} 79. Nf5 {[%clk 0:00:06]}  Qg6 {[%clk 0:00:03]} 80. g8=Q {[%clk 0:00:07]}  Qxf5 {[%clk 0:00:04]} 81. Qb3+ {[%clk 0:00:07]}  Kg4 {[%clk 0:00:04]} 82. Rg7+ {[%clk 0:00:07]}  Kf4 {[%clk 0:00:04]} 83. Qc4+ {[%clk 0:00:08]}  Qe4 {[%clk 0:00:05]} 84. Rg4+ {[%clk 0:00:08]}  Kxg4 {[%clk 0:00:04]} 85. Qxe4+ {[%clk 0:00:08]}  Kg5 {[%clk 0:00:04]} 86. Qf3 {[%clk 0:00:08]}  f5 {[%clk 0:00:05]} 87. Kf7 {[%clk 0:00:09]}  f4 {[%clk 0:00:05]} 88. Ke6 {[%clk 0:00:10]}  Kh4 {[%clk 0:00:05]} 89. Qxf4+ {[%clk 0:00:09]}  Kh5 {[%clk 0:00:05]} 90. Qg3 {[%clk 0:00:10]}  Kh6 {[%clk 0:00:06]} 91. Kf6 {[%clk 0:00:10]}  Kh7 {[%clk 0:00:07]} 92. Qg7# {[%clk 0:00:11]} 1-0


[Site "https://www.chess.com"]

[Event "Titled Tuesday Blitz August 08 Late 2023"]
[White "Perez Ponsa, Federico"]
[Black "Ozdemir, Serhan Berat"]
[WhiteFideId "117927"]
[BlackFideId "6374611"]
[WhiteElo "2870"]
[BlackElo "2652"]
[Result "1-0"]
[Round "3"]
[TimeControl "180+1"]
[Date "2023.08.08"]
[WhiteClock "0:01:40"]
[BlackClock "0:01:51"]
[Board "24"]

1. e4 {[%clk 0:02:44]}  c5 {[%clk 0:02:59]} 2. Nf3 {[%clk 0:02:44]}  e6 {[%clk 0:03:00]} 3. d4 {[%clk 0:02:44]}  cxd4 {[%clk 0:03:00]} 4. Nxd4 {[%clk 0:02:44]}  a6 {[%clk 0:03:00]} 5. Nc3 {[%clk 0:02:25]}  b5 {[%clk 0:02:59]} 6. Bd3 {[%clk 0:02:25]}  Qb6 {[%clk 0:02:56]} 7. Nf3 {[%clk 0:02:24]}  Qc7 {[%clk 0:02:54]} 8. O-O {[%clk 0:02:24]}  Bb7 {[%clk 0:02:51]} 9. Re1 {[%clk 0:02:21]}  Be7 {[%clk 0:02:50]} 10. Bd2 {[%clk 0:02:04]}  Nc6 {[%clk 0:02:47]} 11. a4 {[%clk 0:02:01]}  b4 {[%clk 0:02:45]} 12. Nd5 {[%clk 0:02:01]}  exd5 {[%clk 0:02:40]} 13. exd5 {[%clk 0:02:01]}  Nd8 {[%clk 0:02:26]} 14. Bxb4 {[%clk 0:01:49]}  d6 {[%clk 0:02:25]} 15. c4 {[%clk 0:01:44]}  Nf6 {[%clk 0:02:22]} 16. Qe2 {[%clk 0:01:43]}  Rb8 {[%clk 0:02:03]} 17. Ba5 {[%clk 0:01:40]}  Qd7 {[%clk 0:01:51]} 18. Bf5 {[%clk 0:01:40]} 1-0


[Site "https://www.chess.com"]

[Event "Titled Tuesday Blitz August 08 Late 2023"]
[White "Rasulov, Vugar"]
[Black "Domingo Nunez, Ruben"]
[WhiteFideId "13402390"]
[BlackFideId "22245570"]
[WhiteElo "2849"]
[BlackElo "2642"]
[Result "1-0"]
[Round "3"]
[TimeControl "180+1"]
[Date "2023.08.08"]
[WhiteClock "0:00:08"]
[BlackClock "0:00:00"]
[Board "26"]

1. d4 {[%clk 0:03:00]}  g6 {[%clk 0:02:59]} 2. c4 {[%clk 0:03:01]}  Bg7 {[%clk 0:03:00]} 3. Nf3 {[%clk 0:03:01]}  d6 {[%clk 0:03:01]} 4. Nc3 {[%clk 0:02:58]}  Nd7 {[%clk 0:03:01]} 5. Bg5 {[%clk 0:02:54]}  h6 {[%clk 0:03:01]} 6. Bh4 {[%clk 0:02:54]}  Ngf6 {[%clk 0:03:01]} 7. e3 {[%clk 0:02:54]}  O-O {[%clk 0:03:00]} 8. Be2 {[%clk 0:02:54]}  Re8 {[%clk 0:02:59]} 9. Qc2 {[%clk 0:02:50]}  c6 {[%clk 0:02:59]} 10. O-O {[%clk 0:02:49]}  e5 {[%clk 0:02:56]} 11. Rad1 {[%clk 0:02:43]}  Qc7 {[%clk 0:02:53]} 12. b4 {[%clk 0:02:37]}  a5 {[%clk 0:02:05]} 13. b5 {[%clk 0:02:36]}  exd4 {[%clk 0:02:05]} 14. exd4 {[%clk 0:02:34]}  Nh5 {[%clk 0:02:05]} 15. Rfe1 {[%clk 0:02:24]}  Nf8 {[%clk 0:02:03]} 16. Qc1 {[%clk 0:02:04]}  Bd7 {[%clk 0:01:14]} 17. Bf1 {[%clk 0:01:56]}  Bg4 {[%clk 0:01:13]} 18. Rxe8 {[%clk 0:01:29]}  Rxe8 {[%clk 0:01:14]} 19. Bg3 {[%clk 0:01:19]}  Nxg3 {[%clk 0:00:53]} 20. hxg3 {[%clk 0:01:19]}  Ne6 {[%clk 0:00:52]} 21. bxc6 {[%clk 0:01:15]}  bxc6 {[%clk 0:00:52]} 22. d5 {[%clk 0:01:11]}  cxd5 {[%clk 0:00:40]} 23. Nxd5 {[%clk 0:01:09]}  Qc5 {[%clk 0:00:37]} 24. Re1 {[%clk 0:01:04]}  Rb8 {[%clk 0:00:37]} 25. Nh2 {[%clk 0:00:59]}  h5 {[%clk 0:00:29]} 26. Nxg4 {[%clk 0:00:57]}  hxg4 {[%clk 0:00:30]} 27. Ne3 {[%clk 0:00:41]}  Rb2 {[%clk 0:00:16]} 28. a4 {[%clk 0:00:38]}  Bd4 {[%clk 0:00:15]} 29. Qd1 {[%clk 0:00:25]}  f5 {[%clk 0:00:09]} 30. Qc1 {[%clk 0:00:18]}  Ng5 {[%clk 0:00:03]} 31. Rd1 {[%clk 0:00:17]}  Ne4 {[%clk 0:00:04]} 32. Kh2 {[%clk 0:00:10]}  Nxf2 {[%clk 0:00:03]} 33. Re1 {[%clk 0:00:11]}  Ne4 {[%clk 0:00:03]} 34. Bd3 {[%clk 0:00:08]}  Be5 {[%clk 0:00:02]} 35. Bxe4 {[%clk 0:00:09]}  fxe4 {[%clk 0:00:02]} 36. Nxg4 {[%clk 0:00:09]}  Ra2 {[%clk 0:00:00]} 37. Qh6 {[%clk 0:00:08]} 1-0


[Site "https://www.chess.com"]

[Event "Titled Tuesday Blitz August 08 Late 2023"]
[White "Gadimbayli, Abdulla"]
[Black "Pert, Richard G"]
[WhiteFideId "13404938"]
[BlackFideId "404748"]
[WhiteElo "2841"]
[BlackElo "2587"]
[Result "1/2-1/2"]
[Round "3"]
[TimeControl "180+1"]
[Date "2023.08.08"]
[WhiteClock "0:00:34"]
[BlackClock "0:00:15"]
[Board "28"]

1. e4 {[%clk 0:03:00]}  c5 {[%clk 0:02:58]} 2. Nf3 {[%clk 0:03:00]}  d6 {[%clk 0:02:58]} 3. d4 {[%clk 0:03:00]}  cxd4 {[%clk 0:02:57]} 4. Nxd4 {[%clk 0:03:01]}  Nf6 {[%clk 0:02:57]} 5. Nc3 {[%clk 0:03:02]}  g6 {[%clk 0:02:58]} 6. Be3 {[%clk 0:03:02]}  Bg7 {[%clk 0:02:58]} 7. f3 {[%clk 0:03:02]}  Nc6 {[%clk 0:02:59]} 8. Qd2 {[%clk 0:03:03]}  O-O {[%clk 0:02:59]} 9. O-O-O {[%clk 0:03:03]}  d5 {[%clk 0:02:59]} 10. exd5 {[%clk 0:03:03]}  Nxd5 {[%clk 0:02:59]} 11. Nxc6 {[%clk 0:03:04]}  bxc6 {[%clk 0:02:59]} 12. Bd4 {[%clk 0:03:04]}  e5 {[%clk 0:02:58]} 13. Bc5 {[%clk 0:03:04]}  Rb8 {[%clk 0:02:57]} 14. Ne4 {[%clk 0:03:04]}  f5 {[%clk 0:02:53]} 15. c4 {[%clk 0:02:24]}  fxe4 {[%clk 0:02:43]} 16. fxe4 {[%clk 0:02:24]}  Bg4 {[%clk 0:02:14]} 17. exd5 {[%clk 0:02:04]}  Bxd1 {[%clk 0:02:12]} 18. Qxd1 {[%clk 0:01:56]}  e4 {[%clk 0:01:53]} 19. Bxf8 {[%clk 0:01:41]}  Bxb2+ {[%clk 0:01:40]} 20. Kc2 {[%clk 0:01:41]}  Qxf8 {[%clk 0:01:38]} 21. dxc6 {[%clk 0:01:16]}  Qa3 {[%clk 0:01:33]} 22. Qd5+ {[%clk 0:01:14]}  Kh8 {[%clk 0:01:32]} 23. c7 {[%clk 0:01:11]}  Qc3+ {[%clk 0:01:26]} 24. Kd1 {[%clk 0:01:11]}  Qc1+ {[%clk 0:01:10]} 25. Ke2 {[%clk 0:01:12]}  Qc2+ {[%clk 0:01:11]} 26. Ke3 {[%clk 0:01:12]}  Bc1+ {[%clk 0:00:56]} 27. Kd4 {[%clk 0:01:12]}  Qb2+ {[%clk 0:00:42]} 28. Kxe4 {[%clk 0:01:07]}  Re8+ {[%clk 0:00:39]} 29. Kf3 {[%clk 0:01:06]}  Qf6+ {[%clk 0:00:33]} 30. Kg4 {[%clk 0:00:58]}  Qf4+ {[%clk 0:00:20]} 31. Kh3 {[%clk 0:00:58]}  Qh6+ {[%clk 0:00:18]} 32. Kg4 {[%clk 0:00:58]}  Qf4+ {[%clk 0:00:18]} 33. Kh3 {[%clk 0:00:56]}  Qh6+ {[%clk 0:00:16]} 34. Kg4 {[%clk 0:00:34]}  Qf4+ {[%clk 0:00:15]} 1/2-1/2


[Site "https://www.chess.com"]

[Event "Titled Tuesday Blitz August 08 Late 2023"]
[White "Asadli, Vugar"]
[Black "Adan Bermudez, Sergio"]
[WhiteFideId "13405764"]
[BlackFideId "2292726"]
[WhiteElo "2822"]
[BlackElo "2572"]
[Result "1-0"]
[Round "3"]
[TimeControl "180+1"]
[Date "2023.08.08"]
[WhiteClock "0:01:31"]
[BlackClock "0:00:19"]
[Board "31"]

1. e4 {[%clk 0:03:00]}  d6 {[%clk 0:02:58]} 2. d4 {[%clk 0:03:00]}  Nf6 {[%clk 0:02:59]} 3. Nc3 {[%clk 0:03:01]}  e5 {[%clk 0:03:00]} 4. Nf3 {[%clk 0:03:01]}  Nbd7 {[%clk 0:02:59]} 5. Bc4 {[%clk 0:02:55]}  h6 {[%clk 0:02:59]} 6. a4 {[%clk 0:02:52]}  a5 {[%clk 0:02:58]} 7. O-O {[%clk 0:02:43]}  Be7 {[%clk 0:02:57]} 8. Re1 {[%clk 0:02:42]}  c6 {[%clk 0:02:56]} 9. Ba2 {[%clk 0:02:33]}  Qc7 {[%clk 0:02:55]} 10. Be3 {[%clk 0:02:25]}  Nf8 {[%clk 0:02:54]} 11. Nd2 {[%clk 0:02:24]}  Ng4 {[%clk 0:02:44]} 12. Nc4 {[%clk 0:02:19]}  Nxe3 {[%clk 0:02:32]} 13. Nxe3 {[%clk 0:02:19]}  Ng6 {[%clk 0:02:29]} 14. Nf5 {[%clk 0:02:16]}  Bf6 {[%clk 0:02:25]} 15. d5 {[%clk 0:02:09]}  Bxf5 {[%clk 0:01:48]} 16. exf5 {[%clk 0:02:08]}  Nf4 {[%clk 0:01:44]} 17. Ne4 {[%clk 0:02:03]}  Be7 {[%clk 0:01:30]} 18. Re3 {[%clk 0:01:52]}  Nxd5 {[%clk 0:01:07]} 19. Bxd5 {[%clk 0:01:51]}  cxd5 {[%clk 0:01:08]} 20. Qxd5 {[%clk 0:01:52]}  Qc6 {[%clk 0:01:09]} 21. Rd1 {[%clk 0:01:45]}  Rd8 {[%clk 0:00:46]} 22. Rg3 {[%clk 0:01:39]}  Qxc2 {[%clk 0:00:40]} 23. Rxg7 {[%clk 0:01:37]}  Rf8 {[%clk 0:00:35]} 24. f6 {[%clk 0:01:38]}  Bxf6 {[%clk 0:00:29]} 25. Nxf6+ {[%clk 0:01:38]}  Ke7 {[%clk 0:00:19]} 26. Nh7 {[%clk 0:01:31]} 1-0


[Site "https://www.chess.com"]

[Event "Titled Tuesday Blitz August 08 Late 2023"]
[White "Ashraf, Artin"]
[Black "Shapiro, Viktor"]
[WhiteFideId "22514805"]
[BlackFideId "4175700"]
[WhiteElo "2822"]
[BlackElo "2570"]
[Result "1-0"]
[Round "3"]
[TimeControl "180+1"]
[Date "2023.08.08"]
[WhiteClock "0:00:04"]
[BlackClock "0:00:05"]
[Board "32"]

1. e4 {[%clk 0:03:00]}  Nf6 {[%clk 0:03:00]} 2. e5 {[%clk 0:02:54]}  Nd5 {[%clk 0:03:00]} 3. Nc3 {[%clk 0:02:55]}  Nb6 {[%clk 0:03:00]} 4. a4 {[%clk 0:02:55]}  a5 {[%clk 0:03:00]} 5. d4 {[%clk 0:02:36]}  d6 {[%clk 0:03:00]} 6. exd6 {[%clk 0:02:31]}  exd6 {[%clk 0:03:00]} 7. Bd3 {[%clk 0:02:28]}  Be7 {[%clk 0:03:00]} 8. Nce2 {[%clk 0:02:27]}  Nc6 {[%clk 0:02:58]} 9. c3 {[%clk 0:02:27]}  O-O {[%clk 0:02:58]} 10. Ng3 {[%clk 0:02:22]}  d5 {[%clk 0:02:54]} 11. Nf3 {[%clk 0:02:19]}  Bg4 {[%clk 0:02:53]} 12. h3 {[%clk 0:02:19]}  Bxf3 {[%clk 0:02:53]} 13. Qxf3 {[%clk 0:01:59]}  Re8 {[%clk 0:02:51]} 14. O-O {[%clk 0:01:49]}  g6 {[%clk 0:02:40]} 15. Ne2 {[%clk 0:01:35]}  Bg5 {[%clk 0:02:33]} 16. g3 {[%clk 0:01:34]}  Bxc1 {[%clk 0:02:30]} 17. Raxc1 {[%clk 0:01:35]}  Nxa4 {[%clk 0:02:28]} 18. Rc2 {[%clk 0:01:26]}  Nb6 {[%clk 0:02:22]} 19. h4 {[%clk 0:01:24]}  a4 {[%clk 0:02:19]} 20. Kg2 {[%clk 0:01:22]}  a3 {[%clk 0:02:18]} 21. b4 {[%clk 0:01:10]}  Qd6 {[%clk 0:02:00]} 22. h5 {[%clk 0:00:59]}  Nd7 {[%clk 0:01:51]} 23. Nf4 {[%clk 0:00:44]}  Nf6 {[%clk 0:01:44]} 24. hxg6 {[%clk 0:00:34]}  hxg6 {[%clk 0:01:37]} 25. Ra2 {[%clk 0:00:34]}  Ne4 {[%clk 0:01:31]} 26. Bxe4 {[%clk 0:00:23]}  dxe4 {[%clk 0:01:31]} 27. Qg4 {[%clk 0:00:22]}  e3 {[%clk 0:01:26]} 28. Qh4 {[%clk 0:00:14]}  Qe7 {[%clk 0:01:22]} 29. Qh3 {[%clk 0:00:06]}  Qf6 {[%clk 0:01:01]} 30. Nd5 {[%clk 0:00:06]}  Qg7 {[%clk 0:00:46]} 31. Nxc7 {[%clk 0:00:06]}  e2 {[%clk 0:00:36]} 32. Re1 {[%clk 0:00:05]}  Qf6 {[%clk 0:00:29]} 33. Nxa8 {[%clk 0:00:03]}  Qe7 {[%clk 0:00:12]} 34. Rexe2 {[%clk 0:00:02]}  Qxe2 {[%clk 0:00:12]} 35. Rxe2 {[%clk 0:00:03]}  Rxe2 {[%clk 0:00:12]} 36. Qh1 {[%clk 0:00:03]}  a2 {[%clk 0:00:12]} 37. Qa1 {[%clk 0:00:04]}  Ne7 {[%clk 0:00:11]} 38. Nb6 {[%clk 0:00:04]}  Nf5 {[%clk 0:00:11]} 39. Nc4 {[%clk 0:00:04]}  Rc2 {[%clk 0:00:08]} 40. Nb2 {[%clk 0:00:04]}  Ne3+ {[%clk 0:00:08]} 41. Kf3 {[%clk 0:00:05]}  Nd5 {[%clk 0:00:07]} 42. Qxa2 {[%clk 0:00:04]}  Nxc3 {[%clk 0:00:08]} 43. Qa8+ {[%clk 0:00:04]}  Kg7 {[%clk 0:00:08]} 44. Nd3 {[%clk 0:00:05]}  Rd2 {[%clk 0:00:07]} 45. Ke3 {[%clk 0:00:06]}  Rc2 {[%clk 0:00:05]} 46. Qxb7 {[%clk 0:00:06]}  Nd1+ {[%clk 0:00:05]} 47. Kf3 {[%clk 0:00:06]}  Rd2 {[%clk 0:00:05]} 48. Qb5 {[%clk 0:00:06]}  Nc3 {[%clk 0:00:04]} 49. Qe5+ {[%clk 0:00:06]}  f6 {[%clk 0:00:04]} 50. Qc7+ {[%clk 0:00:07]}  Kh6 {[%clk 0:00:04]} 51. Qxc3 {[%clk 0:00:08]}  Ra2 {[%clk 0:00:04]} 52. d5 {[%clk 0:00:05]}  g5 {[%clk 0:00:04]} 53. Qxf6+ {[%clk 0:00:05]}  Kh5 {[%clk 0:00:05]} 54. g4+ {[%clk 0:00:04]}  Kh4 {[%clk 0:00:05]} 55. Qh8# {[%clk 0:00:04]} 1-0


[Site "https://www.chess.com"]

[Event "Titled Tuesday Blitz August 08 Late 2023"]
[White "Zirkelbach, Maj"]
[Black "Lysyj, Igor"]
[WhiteFideId "14613395"]
[BlackFideId "4150120"]
[WhiteElo "2568"]
[BlackElo "2819"]
[Result "0-1"]
[Round "3"]
[TimeControl "180+1"]
[Date "2023.08.08"]
[WhiteClock "0:00:00"]
[BlackClock "0:00:45"]
[Board "33"]

1. d4 {[%clk 0:03:00]}  d5 {[%clk 0:02:58]} 2. c4 {[%clk 0:03:00]}  e6 {[%clk 0:02:58]} 3. Nf3 {[%clk 0:02:58]}  Nf6 {[%clk 0:02:57]} 4. Nc3 {[%clk 0:02:57]}  Be7 {[%clk 0:02:56]} 5. Bf4 {[%clk 0:02:57]}  dxc4 {[%clk 0:02:55]} 6. e3 {[%clk 0:02:48]}  a6 {[%clk 0:02:54]} 7. a4 {[%clk 0:02:46]}  c5 {[%clk 0:02:53]} 8. Bxc4 {[%clk 0:02:46]}  cxd4 {[%clk 0:02:48]} 9. exd4 {[%clk 0:02:47]}  O-O {[%clk 0:02:47]} 10. O-O {[%clk 0:02:47]}  Nc6 {[%clk 0:02:46]} 11. Qe2 {[%clk 0:02:32]}  Nxd4 {[%clk 0:02:43]} 12. Nxd4 {[%clk 0:02:31]}  Qxd4 {[%clk 0:02:43]} 13. Be5 {[%clk 0:02:18]}  Qg4 {[%clk 0:02:41]} 14. f3 {[%clk 0:01:57]}  Qh5 {[%clk 0:02:39]} 15. Rad1 {[%clk 0:01:24]}  Nd7 {[%clk 0:02:33]} 16. Bg3 {[%clk 0:00:44]}  Nb6 {[%clk 0:02:11]} 17. Bd3 {[%clk 0:00:44]}  Bd7 {[%clk 0:02:07]} 18. Qe4 {[%clk 0:00:26]}  Bc6 {[%clk 0:02:04]} 19. Qf4 {[%clk 0:00:25]}  Rad8 {[%clk 0:01:53]} 20. Kh1 {[%clk 0:00:25]}  Rd7 {[%clk 0:01:24]} 21. Qe3 {[%clk 0:00:15]}  Bc5 {[%clk 0:01:18]} 22. Qe2 {[%clk 0:00:10]}  Rfd8 {[%clk 0:01:16]} 23. a5 {[%clk 0:00:11]}  Nd5 {[%clk 0:01:12]} 24. Nxd5 {[%clk 0:00:09]}  Bxd5 {[%clk 0:01:04]} 25. Be5 {[%clk 0:00:08]}  Be7 {[%clk 0:00:57]} 26. Bc3 {[%clk 0:00:07]}  Bf6 {[%clk 0:00:56]} 27. Bxf6 {[%clk 0:00:07]}  gxf6 {[%clk 0:00:56]} 28. Be4 {[%clk 0:00:06]}  Bxe4 {[%clk 0:00:48]} 29. Rxd7 {[%clk 0:00:06]}  Rxd7 {[%clk 0:00:47]} 30. Qxe4 {[%clk 0:00:00]}  Qxa5 {[%clk 0:00:45]} 0-1


[Site "https://www.chess.com"]

[Event "Titled Tuesday Blitz August 08 Late 2023"]
[White "Troff, Kayden"]
[Black "Droin, Augustin"]
[WhiteFideId "2047896"]
[BlackFideId "45105987"]
[WhiteElo "2812"]
[BlackElo "2551"]
[Result "0-1"]
[Round "3"]
[TimeControl "180+1"]
[Date "2023.08.08"]
[WhiteClock "0:00:08"]
[BlackClock "0:00:31"]
[Board "34"]

1. d4 {[%clk 0:03:00]}  Nf6 {[%clk 0:02:57]} 2. Nf3 {[%clk 0:03:00]}  e6 {[%clk 0:02:57]} 3. Bf4 {[%clk 0:03:00]}  c5 {[%clk 0:02:58]} 4. e3 {[%clk 0:03:00]}  Nc6 {[%clk 0:02:56]} 5. Nc3 {[%clk 0:02:59]}  cxd4 {[%clk 0:02:52]} 6. exd4 {[%clk 0:02:52]}  Bb4 {[%clk 0:02:52]} 7. Bd3 {[%clk 0:02:47]}  d5 {[%clk 0:02:43]} 8. O-O {[%clk 0:02:44]}  O-O {[%clk 0:02:43]} 9. Ne2 {[%clk 0:02:41]}  h6 {[%clk 0:02:42]} 10. c3 {[%clk 0:02:40]}  Bd6 {[%clk 0:02:42]} 11. Bg3 {[%clk 0:02:39]}  Ne4 {[%clk 0:02:41]} 12. Bxe4 {[%clk 0:02:36]}  dxe4 {[%clk 0:02:41]} 13. Ne5 {[%clk 0:02:36]}  Bxe5 {[%clk 0:01:49]} 14. dxe5 {[%clk 0:02:35]}  Qd5 {[%clk 0:01:50]} 15. Qc2 {[%clk 0:02:00]}  Nxe5 {[%clk 0:01:49]} 16. Rad1 {[%clk 0:01:56]}  Nd3 {[%clk 0:01:44]} 17. Nf4 {[%clk 0:01:55]}  Qxa2 {[%clk 0:01:42]} 18. Nxd3 {[%clk 0:01:53]}  exd3 {[%clk 0:01:43]} 19. Rxd3 {[%clk 0:01:53]}  b6 {[%clk 0:01:41]} 20. Be5 {[%clk 0:01:40]}  f6 {[%clk 0:01:39]} 21. Bd6 {[%clk 0:01:40]}  Ba6 {[%clk 0:01:33]} 22. Bxf8 {[%clk 0:01:39]}  Bxd3 {[%clk 0:01:33]} 23. Qxd3 {[%clk 0:01:39]}  Rxf8 {[%clk 0:01:33]} 24. b4 {[%clk 0:01:39]}  Qd5 {[%clk 0:01:33]} 25. Qh3 {[%clk 0:01:37]}  Rc8 {[%clk 0:01:32]} 26. Re1 {[%clk 0:01:35]}  Kf7 {[%clk 0:01:32]} 27. Qe3 {[%clk 0:01:31]}  Qe5 {[%clk 0:01:24]} 28. Qxe5 {[%clk 0:01:28]}  fxe5 {[%clk 0:01:24]} 29. Re3 {[%clk 0:01:28]}  Rc4 {[%clk 0:01:22]} 30. g3 {[%clk 0:01:25]}  e4 {[%clk 0:01:21]} 31. Kf1 {[%clk 0:01:24]}  a5 {[%clk 0:01:21]} 32. bxa5 {[%clk 0:01:24]}  bxa5 {[%clk 0:01:21]} 33. Ke2 {[%clk 0:01:24]}  Kf6 {[%clk 0:01:16]} 34. Kd2 {[%clk 0:01:24]}  Kf5 {[%clk 0:01:16]} 35. Kc2 {[%clk 0:01:23]}  a4 {[%clk 0:01:15]} 36. h3 {[%clk 0:01:20]}  h5 {[%clk 0:01:14]} 37. Re1 {[%clk 0:01:19]}  g5 {[%clk 0:01:13]} 38. Rb1 {[%clk 0:01:18]}  h4 {[%clk 0:01:13]} 39. Rb5+ {[%clk 0:01:17]}  e5 {[%clk 0:01:12]} 40. gxh4 {[%clk 0:01:17]}  gxh4 {[%clk 0:01:12]} 41. Rb8 {[%clk 0:01:17]}  e3 {[%clk 0:00:46]} 42. Kd3 {[%clk 0:00:48]}  e2 {[%clk 0:00:46]} 43. Rb1 {[%clk 0:00:36]}  Re4 {[%clk 0:00:35]} 44. Re1 {[%clk 0:00:35]}  Kf4 {[%clk 0:00:31]} 45. c4 {[%clk 0:00:28]}  a3 {[%clk 0:00:32]} 46. c5 {[%clk 0:00:22]}  a2 {[%clk 0:00:31]} 47. c6 {[%clk 0:00:19]}  a1=Q {[%clk 0:00:31]} 48. Rxa1 {[%clk 0:00:18]}  e1=Q {[%clk 0:00:31]} 49. Rxe1 {[%clk 0:00:12]}  Rxe1 {[%clk 0:00:32]} 50. Kc4 {[%clk 0:00:11]}  Rc1+ {[%clk 0:00:32]} 51. Kd5 {[%clk 0:00:11]}  e4 {[%clk 0:00:32]} 52. Kd6 {[%clk 0:00:08]}  Kf3 {[%clk 0:00:31]} 0-1


[Site "https://www.chess.com"]